Cogmind - Beta 13 @@@ ROGUE MODE // 2024.03.17 @ 18:27:39 Player: opdo Result: Self-destructed Performance ------------- Evolutions (1) 500 Regions Visited (3) 600 Robots Destroyed (5) 25 Value Destroyed (192) 192 Prototype IDs (0) 0 Alien Tech Used (0) 0 Bonus (0) 0 TOTAL SCORE: 1317 Bonus ------- None Cogmind --------- Core Integrity 327/400 Matter 212/300 Energy 22/100 System Corruption 0% Temperature Warning (388) Movement Walking (190) Ox1 Location -9/Storage Parts ------- > --- POWER (1) -------- (None) > --- PROPULSION (3) --- Aluminum Leg Aluminum Leg > --- UTILITY (3) ------ Small Storage Unit > --- WEAPON (2) ------- Spread Laser Spread Laser > --- INVENTORY (8) ---- Spread Laser Light Assault Rifle Peak State ------------ > --- POWER ------------ Light Ion Engine > --- PROPULSION ------- Aluminum Leg Aluminum Leg > --- UTILITY ---------- Small Storage Unit > --- WEAPON ----------- Spread Laser Spread Laser > --- INVENTORY -------- Light Assault Rifle [Rating: 8] Favorites ----------- Power Light Ion Engine Engine Light Ion Engine Propulsion Aluminum Leg Leg Aluminum Leg Utility Small Storage Unit Storage Small Storage Unit Weapon Spread Laser Energy Gun Spread Laser Ballistic Gun Assault Rifle Build | -11 -10 -9 -9 ------- Run | Yrd Mat Mat Sto Slots Evolved 2 | . . 2 . Power . | . . . . Propulsion 1 | . . 1 . Utility 1 | . . 1 . Weapon . | . . . . Parts Attached 10 | 7 2 . 1 Power 1 | 1 . . . Engine 1 | 1 . . . Core . | . . . . Reactor . | . . . . Propulsion 2 | 2 . . . Treads . | . . . . Leg 2 | 2 . . . Wheel . | . . . . Hover . | . . . . Flight . | . . . . Utility 1 | 1 . . . Device . | . . . . Storage 1 | 1 . . . Processor . | . . . . Hackware . | . . . . Protection . | . . . . Artifact . | . . . . Weapon 6 | 3 2 . 1 Energy Gun 4 | 1 2 . 1 Energy Cannon . | . . . . Ballistic Gun 2 | 2 . . . Ballistic Cannon . | . . . . Launcher . | . . . . Special Weapon . | . . . . Impact Weapon . | . . . . Slashing Weapon . | . . . . Piercing Weapon . | . . . . Special Melee Weapon . | . . . . Unidentified Prototypes . | . . . . Parts Lost 1 | . . . 1 Power 1 | . . . 1 Propulsion . | . . . . Utility . | . . . . Weapon . | . . . . Highest Loss Streak 1 | . . . 1 To Critical Strikes . | . . . . Average Slot Usage (%) 77 | . 85 66 64 Engine 12 | . 14 11 9 Leg 25 | . 28 22 22 Storage 12 | . 14 11 11 Energy Gun 23 | . 23 22 22 Ballistic Gun 2 | . 4 . . Naked Turns . | . . . . Heaviest Build 14 | 11 14 14 14 Greatest Support 20 | 20 20 20 20 Greatest Overweight (x) . | . . . . Average Overweight (x) . | . . . . Largest Inventory Capacity 8 | 8 8 8 8 Average Capacity 7 | 6 8 8 8 Most Carried 3 | 3 3 2 2 Average Carried 1 | . 1 2 2 Final Capacity 8 | 8 8 8 8 Final Carried 2 | 1 2 2 2 Class Distribution -------------------- 100% | Mutant Dominant Class ---------------- Mutant | -10/Materials Mutant | -9/Materials Mutant | -9/Storage Resources | -11 -10 -9 -9 ----------- Run | Yrd Mat Mat Sto Matter Collected 197 | 169 28 . . Remotely . | . . . . Salvage Created 172 | . 28 . 144 Parts 8 | . 1 . 7 Haulers Intercepted . | . . . . Recyclers Shooed . | . . . . Parts Field Recycled . | . . . . Retrieved Matter . | . . . . Parts Self-Destructed . | . . . . Prevented . | . . . . Kills | -11 -10 -9 -9 ------- Run | Yrd Mat Mat Sto Combat Hostiles Destroyed 5 | . 1 . 4 Guns 5 | . 1 . 4 Classes Destroyed 2 | . 1 . 1 Grunt 3 | . 1 . 2 Sentry 2 | . . . 2 Best Kill Streak 4 | . 1 . 4 Combat Bots Only 4 | . 1 . 4 Max Kills in Single Turn 1 | . 1 . 1 Gunslinging . | . . . . Exploded . | . . . . Melee . | . . . . Uniques/NPCs Destroyed . | . . . . Combat | -11 -10 -9 -9 -------- Run | Yrd Mat Mat Sto Hostile Shots Fired 32 | . 4 . 28 Missed 6 | . 1 . 5 Damage Taken 356 | . 32 . 324 Core 84 | . 11 . 73 Absorbed by Shields . | . . . . Core Remaining (%) 97 | 100 95 . . Volleys Fired 17 | . 5 . 12 Largest 2 | . 2 . 2 Hottest 130 | . 130 . 130 Shots Fired 34 | . 10 . 24 Gun 34 | . 10 . 24 Cannon . | . . . . Launcher . | . . . . Special . | . . . . Kinetic . | . . . . Thermal 34 | . 10 . 24 Explosive . | . . . . Electromagnetic . | . . . . Robot Hit Streak 12 | . 8 . 12 Robot Miss Streak 5 | . 4 . 5 Penetration Max . | . . . . Secondary Targets 1 | . . . 1 Max Gunslinging Chain 1 | . . . 1 Shots Hit Robots 32 | . 10 . 22 Core Hits 34 | . 7 . 27 Critical Kills . | . . . . Critical Parts Destroyed . | . . . . Critical Strikes . | . . . . Melee Attacks . | . . . . Impact . | . . . . Slashing . | . . . . Piercing . | . . . . Sneak Attacks . | . . . . Combat Hostiles . | . . . . Follow-up Attacks . | . . . . Damage Inflicted 438 | . 149 . 289 Guns 433 | . 149 . 284 Cannons . | . . . . Explosions . | . . . . Melee . | . . . . Ramming 5 | . . . 5 Kinetic . | . . . . Thermal 433 | . 149 . 284 Explosive . | . . . . Electromagnetic . | . . . . Impact . | . . . . Slashing . | . . . . Piercing . | . . . . Highest Corruption . | . . . . Average Corruption . | . . . . Corruption Purged . | . . . . Corruption Blocked . | . . . . Overload Shots . | . . . . Overflow Damage . | . . . . Projectiles . | . . . . Explosions . | . . . . Melee . | . . . . Knockbacks . | . . . . Impact . | . . . . Kinetic . | . . . . Secondary . | . . . . Self-Inflicted Damage . | . . . . Shots . | . . . . Rammed . | . . . . Targets Rammed 2 | . . . 2 Kicked 2 | . . . 2 Crushed . | . . . . Highest Temperature 457 | . 363 . 457 Average Temperature 226 | . 185 . 254 Received Heat Transfer 126 | . 18 . 108 Effects 3 | . . . 3 Energy Bleed 1 | . . . 1 Short Circuit 2 | . . . 2 Siege Activations . | . . . . Robots Corrupted . | . . . . Combat Hostiles . | . . . . Parts Fried . | . . . . Impact Corruptions . | . . . . Robots Melted . | . . . . Combat Hostiles . | . . . . Parts Melted . | . . . . Heat Transferred 555 | . 190 . 365 Parts Sabotaged . | . . . . Parts Stolen . | . . . . Parts Stripped . | . . . . Power Chain Reactions . | . . . . Alert | -11 -10 -9 -9 ------- Run | Yrd Mat Mat Sto Peak Influence 115 | . 30 12 115 Initial 12 | . . 12 4 Average 12 | . 6 12 31 Maximum Alert Level . | . . . . Low Security (%) 100 | 100 100 100 100 Level 1 . | . . . . Level 2 . | . . . . Level 3 . | . . . . Level 4 . | . . . . Level 5 . | . . . . High Security . | . . . . Max Security . | . . . . Squads Dispatched 4 | . 1 . 3 Investigation . | . . . . Extermination . | . . . . Reinforcement 3 | . 1 . 2 Assault . | . . . . Garrison 1 | . . . 1 Intercept . | . . . . Searches Triggered . | . . . . Construction Impeded . | . . . . Haulers Reinforced . | . . . . Active Scanning Responses . | . . . . Cargo Convoy Interrupts . | . . . . Stealth | -11 -10 -9 -9 --------- Run | Yrd Mat Mat Sto Distress Signals 3 | . 1 . 2 Communications Jammed . | . . . . Distress Signals . | . . . . Times Spotted 12 | . 2 . 10 Peak Tracking Total 5 | . 1 . 5 Tactical Retreats . | . . . . Traps | -11 -10 -9 -9 ------- Run | Yrd Mat Mat Sto Traps Triggered . | . . . . Indirectly . | . . . . Trap Hack Attempts . | . . . . Triggered . | . . . . Disarmed . | . . . . Reprogrammed . | . . . . Reused . | . . . . Traps Extracted . | . . . . Installed . | . . . . Triggered . | . . . . Machines | -11 -10 -9 -9 ---------- Run | Yrd Mat Mat Sto Machines Disabled . | . . . . Max in Single Turn . | . . . . Machines Repaired . | . . . . Machines Dismantled . | . . . . Machines Sabotaged . | . . . . Overloaded Fab Kills . | . . . . Hacking | -11 -10 -9 -9 --------- Run | Yrd Mat Mat Sto Machines Accessed 2 | . . . 2 Terminals 1 | . . . 1 Fabricators . | . . . . Repair Stations . | . . . . Recycling Units . | . . . . Scanalyzers . | . . . . Garrison Access 1 | . . . 1 Total Hacks 3 | . . . 3 Successful 1 | . . . 1 Failed 2 | . . . 2 Catastrophic 1 | . . . 1 Database Lockouts . | . . . . Manual 3 | . . . 3 Terminals 2 | . . . 2 Fabricators . | . . . . Repair Stations . | . . . . Recycling Units . | . . . . Scanalyzers . | . . . . Garrison Access 1 | . . . 1 Terminal Hacks 1 | . . . 1 Unreport Threat 1 | . . . 1 Fabricator Hacks . | . . . . Repair Station Hacks . | . . . . Recycling Unit Hacks . | . . . . Scanalyzer . | . . . . Garrison Access Hacks . | . . . . Unauthorized Hacks . | . . . . Terminals . | . . . . Fabricators . | . . . . Repair Stations . | . . . . Recycling Units . | . . . . Scanalyzers . | . . . . Garrison Access . | . . . . Data Cores Recovered . | . . . . Used . | . . . . Hacking Detections 2 | . . . 2 Full Trace Events . | . . . . Feedback Events . | . . . . Feedback Blocked . | . . . . Robot Schematics Acquired . | . . . . Robots Built . | . . . . Authchips . | . . . . Time . | . . . . Total Robot Build Rating . | . . . . Part Schematics Acquired . | . . . . Parts Built . | . . . . Authchips . | . . . . Time . | . . . . Total Part Build Rating . | . . . . Parts Repaired . | . . . . Time . | . . . . Parts Recycled . | . . . . Recycled Matter . | . . . . Retrieved Matter . | . . . . Retrieved Components . | . . . . Parts Scanalyzed . | . . . . Part Schematics Acquired . | . . . . Parts Damaged . | . . . . Bothacking | -11 -10 -9 -9 ------------ Run | Yrd Mat Mat Sto Used RIF Installer . | . . . . Robots Hacked . | . . . . Non-combat . | . . . . Combat . | . . . . Robot Hacks Applied . | . . . . Relay Couplers Released . | . . . . Fabnet Peak Effective % . | . . . . Robots Rewired . | . . . . Allies Hacked . | . . . . Hacks Repelled . | . . . . Allies | -11 -10 -9 -9 -------- Run | Yrd Mat Mat Sto Total Allies . | . . . . Largest Group . | . . . . Highest-Rated Group . | . . . . Highest-Rated Ally . | . . . . Total Orders . | . . . . Ally Attacks . | . . . . Total Damage . | . . . . Kills . | . . . . Allies Corrupted . | . . . . Allies Melted . | . . . . Intel | -11 -10 -9 -9 ------- Run | Yrd Mat Mat Sto Robot Analysis Total . | . . . . Derelict Logs Recovered . | . . . . Drone Launches . | . . . . Drone Recoveries . | . . . . Exploration | -11 -10 -9 -9 ------------- Run | Yrd Mat Mat Sto Turns Passed 391 | 46 229 9 107 Spaces Moved 260 | 29 173 8 50 Core 3 | 3 . . . Treads . | . . . . Legs 257 | 26 173 8 50 Wheels . | . . . . Hover . | . . . . Flight . | . . . . Fastest Speed 50 | 50 120 120 120 Average Speed 119 | 112 120 120 120 Slowest Speed 120 | 120 120 120 120 Overloaded Moves . | . . . . Propulsion Burnouts . | . . . . Robots Hopped . | . . . . Cave-ins Triggered . | . . . . Exploration Rate (%) 12 | 3 31 4 12 Regions Visited 3 Branch Regions 1 Pre-discovered Areas . | . . . . Known Exits Taken . | . . . . Unknown Exits Taken 3 | 1 1 1 . Scrap Searched . | . . . . Spaces Dug . | . . . . Terrain Destroyed . | . . . . Melee . | . . . . Projectile . | . . . . AOE . | . . . . Terrain Rammed . | . . . . Walls Destroyed . | . . . . Machines Disabled . | . . . . Actions | -11 -10 -9 -9 --------- Run | Yrd Mat Mat Sto Total 306 | 42 185 7 72 Wait 8 | . 1 . 7 Move 257 | 28 172 7 50 Hop . | . . . . Pick Up 10 | 7 3 . . Fast Attach . | . . . . Attach 8 | 6 2 . . Detach . | . . . . Swap 2 | 1 . . 1 Drop 2 | . 2 . . Fire 17 | . 5 . 12 Melee . | . . . . Ram . | . . . . Kick 2 | . . . 2 Crush . | . . . . Escape Stasis . | . . . . Rewire . | . . . . Trap . | . . . . Miscellaneous . | . . . . Route ------- -11/Scrapyard -10/Materials -9/Materials -9/Storage History --------- Turn | Location | Event 10 | -11/Scrapyard | Discovered new exit (range 16) 47 | -11/Scrapyard | Entered Materials 271 | -10/Materials | Discovered new exit (range 3) 276 | -10/Materials | Entered another Materials area 276 | -9/Materials | Evolved 2 slots: Propulsion x1, Utility x1 276 | -9/Materials | Discovered new exit (range 8) 285 | -9/Materials | Entered Storage 309 | -9/Storage | Build established: Mutant 349 | -9/Storage | Garrison activated, responded to threat 392 | -9/Storage | Self-destructed Last Messages --------------- 00355_ G-34 Mercenary destroyed. 00355_ Switching to secondary target: G-34 Mercenary. 00361_ G-34 Mercenary destroyed. 00372_ Y-45 Defender destroyed. 00375_ Lgt. Ion Engine destroyed. 00376_ R-06 Scavenger collects Lgt. Armor Plating. 00379_ R-06 Scavenger collects Sml. Laser. 00381_ Y-45 Defender destroyed. 00382_ R-06 Scavenger collects Lgt. Armor Plating. 00384_ Spread Laser broken. 00384_ Overheating: Short circuit. 00385_ R-06 Scavenger collects Lgt. Treads. 00386_ Kicked Y-45 Defender. 00388_ Overheating: Energy bleed (-1). 00390_ Kicked Y-45 Defender out of the way. 00392_ Aluminum Leg broken. 00392_ Overheating: Short circuit. Map ----- +----------------------------------------------------+ | | | | | ????????????????????????????????????? | | ????????????????????????????????????? | | ????????????????????????????????????? | | ????????????????????????????????????? | | ????????????????????????????????????? | | ????????????????????????????????????? | | ????????????????????????????????????? | | ????????????????????????????????????? | | ???????#####????????????????????????? | | ???????# #????????????????????????? | | ???????# ##########???????????????? | | ???????# # """ ####????????????? | | ???????# # "T" """#????????????? | | ???????# # G"#????????????? | | ???????# / """#????????????? | | ???????# # ####????????????? | | ???????# # """#???????????????? | | ######## # """#???????????????? | | # # # """#???????????????? | | #""" # # #???????????????? | | #""" # ##########???????????????? | | #""" !# # #???????????????? | | #""" # # %r #???????????????? | | #""" # #@ "????????????????????? | | # + %m%[""????????????????????? | | #""" # %#Y""?????????????????????? | | #""" # u# "??????????????????????? | | #""" # # "??????????????????????? | | #""" # # "??????????????????????? | | #""" # # ??????????????????????? | | # # ###??????????????????????? | | #####+## #????????????????????????? | | ??????? #????????????????????????? | | ??????? #????????????????????????? | | ??????? #????????????????????????? | | ?????? #????????????????????????? | | ?????? #????????????????????????? | | ?????? #????????????????????????? | | ?????? #????????????????????????? | | ???????##+#?????????????????????????? | | ????????????????????????????????????? | | ????????????????????????????????????? | | ????????????????????????????????????? | | ????????????????????????????????????? | | ????????????????????????????????????? | | ????????????????????????????????????? | | ????????????????????????????????????? | | ????????????????????????????????????? | +----------------------------------------------------+ Best States ------------- Heat Dissipation 28 Energy Generation 10 Energy Capacity 125 Matter Stores 212 Matter Capacity 300 Sight Range 16 Terrain Scan Density 10 Evasion (%) 55 Item Schematics ----------------- None Robot Schematics ------------------ None Fabricated ------------ Nothing Alien Tech Used ----------------- None Achievements -------------- None Challenges ------------ None Game ------ Seed ImprovedUltimateRigger Manual? 0 Play Time 00:07:03 Cumulative 10.9 hours Start 2024.03.17 @ 18:23:12 End 2024.03.17 @ 18:27:39 Sessions 1 Manual Loads 0 Difficulty Rogue Special Mode None Game No. 30 Rogue 28 Adventurer 2 Explorer 0 Win Type - Total 0 Types 0/0/0/0/0/0/0/0/0 Lore% 16 Gallery% 25 Achievement% 15 Wizard Run 0 Options --------- Layout 1 ASCII 0 Keyboard 0 Movement Arrows Keybinds 0 Fullscreen 1 Font 24/Smallcaps Map View 50x35 Zoom Use 0% Tactical HUD 1 Map Filters NONE Filters NONE Steam 1 RUN: a5145168-207b-4d9e-87cd-6c388f996505